Cogmind - Beta 15 @@@ ROGUE MODE // 2025.08.30 @ 08:29:48 Player: shapeshifter Result: Destroyed by 00-2G5(R) with Subdweller Beam Cannon Performance ------------- Evolutions (0) 0 Regions Visited (3) 600 Robots Destroyed (18) 90 Value Destroyed (516) 516 Prototype IDs (0) 0 Alien Tech Used (0) 0 Bonus (0) 0 TOTAL SCORE: 1206 Bonus ------- None Cogmind --------- Core Integrity 0/250 Matter 284/300 Energy 198/200 System Corruption 0% Temperature Cool (9) Movement Rolling (110) Location -10/Subcaves Parts ------- > --- POWER (1) -------- Subdweller Power Source > --- PROPULSION (2) --- Subdweller Monowheel Subdweller Monowheel > --- UTILITY (2) ------ Small Storage Unit Seismic Detector > --- WEAPON (2) ------- Subdweller Machine Gun Subdweller Machine Gun > --- INVENTORY (8) ---- Light Humpback Assault Rifle Light Assault Rifle Subdweller Machine Gun Subdweller Machine Gun Battle Cannon Grenade Launcher Peak State ------------ > --- POWER ------------ Subdweller Power Source > --- PROPULSION ------- Subdweller Monowheel Subdweller Monowheel > --- UTILITY ---------- Small Storage Unit Seismic Detector > --- WEAPON ----------- Subdweller Machine Gun Subdweller Machine Gun > --- INVENTORY -------- Light Humpback Assault Rifle Light Assault Rifle Subdweller Machine Gun Subdweller Machine Gun Battle Cannon Grenade Launcher [Rating: 13] Favorites ----------- Power Subdweller Power Source Engine Subdweller Power Source Propulsion Light Treads Treads Light Treads Wheel Subdweller Monowheel Utility Small Storage Unit Device Seismic Detector Storage Small Storage Unit Weapon Assault Rifle Energy Gun EM Pulse Gun Ballistic Gun Assault Rifle Launcher Grenade Launcher Build | -11 -10 -10 -10 ------- Run | Yrd Mat Min Sub Slots Evolved . | . . . . Power . | . . . . Propulsion . | . . . . Utility . | . . . . Weapon . | . . . . Parts Attached 27 | 7 . 3 17 Power 7 | 1 . 1 5 Engine 7 | 1 . 1 5 Core . | . . . . Reactor . | . . . . Propulsion 8 | 2 . 1 5 Treads 3 | 2 . 1 . Leg . | . . . . Wheel 5 | . . . 5 Hover . | . . . . Flight . | . . . . Utility 2 | 2 . . . Device 1 | 1 . . . Storage 1 | 1 . . . Processor . | . . . . Hackware . | . . . . Protection . | . . . . Artifact . | . . . . Weapon 10 | 2 . 1 7 Energy Gun 1 | 1 . . . Energy Cannon . | . . . . Ballistic Gun 8 | 1 . 1 6 Ballistic Cannon . | . . . . Launcher 1 | . . . 1 Special Weapon . | . . . . Impact Weapon . | . . . . Slashing Weapon . | . . . . Piercing Weapon . | . . . . Special Melee Weapon . | . . . . Unidentified Prototypes . | . . . . Parts Lost 4 | . . . 4 Power 2 | . . . 2 Propulsion . | . . . . Utility . | . . . . Weapon 2 | . . . 2 Highest Loss Streak 4 | . . . 4 To Critical Strikes . | . . . . Average Backups 6 | 3 4 7 6 Power . | . 1 1 . Propulsion 1 | 1 2 2 1 Utility . | . 1 . . Weapon 3 | . . 3 4 Tool/Special . | . . . . Unused Backups 9 | 1 . 2 6 Power 1 | . . 1 . Propulsion 2 | . . . 2 Utility 2 | . . 1 1 Weapon 4 | 1 . . 3 Tool/Special . | . . . . Average Slot Usage (%) 99 | . 100 100 99 Engine 13 | . 14 14 13 Treads 20 | . 28 28 18 Wheel 7 | . . . 9 Device 14 | . 14 14 14 Storage 14 | . 14 14 14 Ballistic Gun 26 | . 14 26 27 Peak Build Rating 13 | 7 7 8 13 Average Rating 8 | 5 7 7 9 On Entrance 5 | . 7 7 7 Naked Turns . | . . . . Heaviest Build 19 | 13 13 15 19 Greatest Support 40 | 40 40 40 40 Greatest Overweight (x) . | . . . . Average Overweight (x) . | . . . . Largest Inventory Capacity 8 | 8 8 8 8 Average Capacity 7 | 7 8 8 8 Most Carried 8 | 7 6 8 8 Average Carried 6 | 3 4 7 7 Final Capacity 8 | 8 8 8 8 Final Carried 8 | 4 6 8 8 Class Distribution -------------------- 75% | Mutant 19% | Scavenger-Mutant 4% | Derelict-Mutant Dominant Class ---------------- Mutant | -10/Materials Mutant | -10/Mines Mutant | -10/Subcaves Resources | -11 -10 -10 -10 ----------- Run | Yrd Mat Min Sub Matter Collected 1039 | 278 28 81 652 Remotely . | . . . . Salvage Created 803 | 100 60 129 514 Parts 53 | 14 1 8 30 Haulers Intercepted 1 | . 1 . . Recyclers Shooed 1 | 1 . . . Parts Field Recycled . | . . . . Retrieved Matter . | . . . . Parts Self-Destructed 13 | . . . 13 Prevented . | . . . . Kills | -11 -10 -10 -10 ------- Run | Yrd Mat Min Sub Combat Hostiles Destroyed 13 | . . 4 9 Guns 12 | . . 3 9 AOE 1 | . . 1 . Classes Destroyed 7 | 2 1 2 2 Worker 1 | 1 . . . Tunneler 3 | 3 . . . Hauler 1 | . 1 . . Swarmer 2 | . . 2 . Grunt 4 | . . 2 2 Artisan 1 | . . . 1 Subdweller 7 | . . . 7 Best Kill Streak 3 | 3 1 2 2 Combat Bots Only 2 | . . 2 2 Max Kills in Single Turn 1 | 1 1 1 1 Gunslinging . | . . . . Exploded 1 | . . 1 . Melee . | . . . . Uniques/NPCs Destroyed . | . . . . Combat | -11 -10 -10 -10 -------- Run | Yrd Mat Min Sub Hostile Shots Fired 96 | . . 25 71 Missed 26 | . . 10 16 Hits 70 | . . 15 55 Projectile 70 | . . 15 55 AOE 2 | . . . 2 Critical Strikes 2 | . . 1 1 Damage Taken 1349 | . . 190 1159 Core 254 | . . 25 229 Absorbed by Shields . | . . . . Core Remaining (%) 100 | 100 . . . Volleys Fired 154 | 6 6 10 132 Largest 2 | 2 2 2 2 Hottest 60 | 60 60 60 60 Shots Fired 226 | 12 12 20 182 Gun 224 | 12 12 20 180 Cannon . | . . . . Launcher 2 | . . . 2 Special . | . . . . Kinetic 209 | 6 6 17 180 Thermal . | . . . . Explosive 2 | . . . 2 Electromagnetic 15 | 6 6 3 . Robot Hit Streak 28 | 5 8 10 28 Robot Miss Streak 3 | 1 1 1 3 Penetration Max . | . . . . Secondary Targets 2 | . . . 2 Max Gunslinging Chain 1 | . . . 1 Shots Hit Robots 115 | 9 10 14 82 Core Hits 42 | 5 2 6 29 Critical Kills . | . . . . Critical Parts Destroyed . | . . . . Critical Strikes 1 | . . . 1 Destroy 1 | . . . 1 Melee Attacks . | . . . . Impact . | . . . . Slashing . | . . . . Piercing . | . . . . Sneak Attacks . | . . . . Combat Hostiles . | . . . . Follow-up Attacks . | . . . . Damage Inflicted 1544 | 114 162 204 1064 Guns 1483 | 114 131 178 1060 Cannons . | . . . . Explosions 57 | . 31 26 . Melee . | . . . . Ramming 4 | . . . 4 Kinetic 1311 | 46 59 146 1060 Thermal 57 | . 31 26 . Explosive . | . . . . Electromagnetic 172 | 68 72 32 . Impact . | . . . . Slashing . | . . . . Piercing . | . . . . Highest Corruption . | . . . . Average Corruption . | . . . . Corruption Purged . | . . . . Corruption Blocked . | . . . . Overload Shots . | . . . . Overflow Damage 18 | . . 18 . Projectiles . | . . . . Explosions 18 | . . 18 . Melee . | . . . . Knockbacks 1 | . . . 1 Impact 1 | . . . 1 Kinetic . | . . . . Secondary . | . . . . Self-Inflicted Damage . | . . . . Shots . | . . . . Rammed 3 | . . . 3 Targets Rammed 3 | . . . 3 Kicked . | . . . . Crushed . | . . . . Highest Temperature 2 | . . 2 . Average Temperature 1 | . . 1 . Received Heat Transfer 459 | . . 99 360 Siege Activations . | . . . . Martial Activations . | . . . . Shielding Activations . | . . . . Robots Disrupted . | . . . . Combat Hostiles . | . . . . Robots Corrupted . | . . . . Combat Hostiles . | . . . . Parts Fried 1 | . 1 . . Impact Corruptions . | . . . . Robots Melted . | . . . . Combat Hostiles . | . . . . Parts Melted 1 | . . . 1 Heat Transferred 100 | . 50 50 . Parts Sabotaged . | . . . . Parts Stolen . | . . . . Parts Stripped . | . . . . Power Chain Reactions 2 | . 1 1 . Alert | -11 -10 -10 -10 ------- Run | Yrd Mat Min Sub Maximum Alert Level . | . . . . Low Security (%) 100 | 100 100 100 . Level 1 . | . . . . Level 2 . | . . . . Level 3 . | . . . . Level 4 . | . . . . Level 5 . | . . . . High Security . | . . . . Max Security . | . . . . Peak Influence 95 | 10 7 95 . Initial . | . . . . Average 24 | . 1 44 . Influence Increases 258 | 20 13 154 71 Destroy 0b10 Robot/C 140 | . . 80 60 Destroy 0b10 Robot/NC 25 | 20 5 . . Destroy Leader 22 | . 2 10 10 Allied During Kill 1 | . . . 1 Successful Hack 19 | . . 19 . Disable Machine 45 | . . 45 . Destroy Structure 6 | . 6 . . Influence Decreases 258 | 20 13 154 71 Time Decay 258 | 20 13 154 71 Squads Dispatched . | . . . . Investigation . | . . . . Extermination . | . . . . Reinforcement . | . . . . Assault . | . . . . Garrison . | . . . . Intercept . | . . . . Searches Triggered . | . . . . Construction Impeded . | . . . . Haulers Reinforced . | . . . . Active Scanning Responses . | . . . . Cargo Convoy Interrupts . | . . . . Stealth | -11 -10 -10 -10 --------- Run | Yrd Mat Min Sub Distress Signals . | . . . . Communications Jammed . | . . . . Distress Signals . | . . . . Times Spotted 20 | . 2 5 13 Peak Tracking Total 3 | . 2 3 3 Tactical Retreats . | . . . . Traps | -11 -10 -10 -10 ------- Run | Yrd Mat Min Sub Traps Triggered . | . . . . Indirectly . | . . . . Trap Hack Attempts . | . . . . Triggered . | . . . . Disarmed . | . . . . Reprogrammed . | . . . . Reused . | . . . . Traps Extracted . | . . . . Installed . | . . . . Triggered . | . . . . Machines | -11 -10 -10 -10 ---------- Run | Yrd Mat Min Sub Machines Disabled 3 | . . 3 . Max in Single Turn 3 | . . 3 . Machines Repaired . | . . . . Machines Dismantled . | . . . . Machines Sabotaged . | . . . . Overloaded Fab Kills . | . . . . Hacking | -11 -10 -10 -10 --------- Run | Yrd Mat Min Sub Machines Accessed 1 | . . 1 . Terminals 1 | . . 1 . Fabricators . | . . . . Repair Stations . | . . . . Recycling Units . | . . . . Scanalyzers . | . . . . Garrison Access . | . . . . Total Hacks 3 | . . 3 . Successful 3 | . . 3 . Failed . | . . . . Catastrophic . | . . . . Database Lockouts . | . . . . Manual 3 | . . 3 . Terminals 3 | . . 3 . Fabricators . | . . . . Repair Stations . | . . . . Recycling Units . | . . . . Scanalyzers . | . . . . Garrison Access . | . . . . Terminal Hacks 2 | . . 2 . Registered Components 1 | . . 1 . Zone Layout 1 | . . 1 . Fabricator Hacks . | . . . . Repair Station Hacks . | . . . . Recycling Unit Hacks . | . . . . Scanalyzer . | . . . . Garrison Access Hacks . | . . . . Unauthorized Hacks 1 | . . 1 . Terminals 1 | . . 1 . Botnet 1 | . . 1 . Fabricators . | . . . . Repair Stations . | . . . . Recycling Units . | . . . . Scanalyzers . | . . . . Garrison Access . | . . . . Data Cores Recovered . | . . . . Used . | . . . . Hacking Detections . | . . . . Full Trace Events . | . . . . Feedback Events . | . . . . Feedback Blocked . | . . . . Robot Schematics Acquired . | . . . . Robots Built . | . . . . Authchips . | . . . . Time . | . . . . Total Robot Build Rating . | . . . . Part Schematics Acquired . | . . . . Parts Built . | . . . . Authchips . | . . . . Time . | . . . . Total Part Build Rating . | . . . . Parts Repaired . | . . . . Time . | . . . . Parts Recycled . | . . . . Recycled Matter . | . . . . Retrieved Matter . | . . . . Retrieved Components . | . . . . Parts Scanalyzed . | . . . . Part Schematics Acquired . | . . . . Parts Damaged . | . . . . Bothacking | -11 -10 -10 -10 ------------ Run | Yrd Mat Min Sub Used RIF Installer . | . . . . Robots Hacked . | . . . . Non-combat . | . . . . Combat . | . . . . Robot Hacks Applied . | . . . . Relay Couplers Released . | . . . . Fabnet Peak Effective % . | . . . . Robots Rewired . | . . . . Allies Hacked . | . . . . Hacks Repelled . | . . . . Allies | -11 -10 -10 -10 -------- Run | Yrd Mat Min Sub Total Allies 1 | . . 1 . Largest Group 1 | . . 1 1 Highest-Rated Group 31 | . . 31 31 Highest-Rated Ally 31 | . . 31 31 Total Orders . | . . . . Ally Attacks 3 | . . . 3 Total Damage 40 | . . . 40 Kills 1 | . . . 1 Allies Corrupted . | . . . . Allies Melted . | . . . . Intel | -11 -10 -10 -10 ------- Run | Yrd Mat Min Sub Active Infowar (turns) 2013 | 39 108 396 1470 Seismic 2013 | 39 108 396 1470 Robot Analysis Total . | . . . . Derelict Logs Recovered 3 | . . 2 1 Drone Launches . | . . . . Drone Recoveries . | . . . . Exploration | -11 -10 -10 -10 ------------- Run | Yrd Mat Min Sub Turns Passed 2212 | 238 108 396 1470 Spaces Moved 1187 | 130 56 198 803 Core 13 | 13 . . . Treads 773 | 117 56 198 402 Legs . | . . . . Wheels 401 | . . . 401 Hover . | . . . . Flight . | . . . . Fastest Speed 50 | 50 160 160 110 Average Speed 141 | 149 160 160 135 Slowest Speed 160 | 160 160 160 160 Overloaded Moves . | . . . . Propulsion Burnouts . | . . . . Robots Hopped . | . . . . Potential Cave-ins . | . . . . Cave-ins Triggered . | . . . . Exploration Rate (%) 25 | 5 14 44 39 Regions Visited 3 Branch Regions 2 Pre-discovered Areas 2 | . . 1 1 Known Exits Taken . | . . . . Unknown Exits Taken 3 | 1 1 1 . Scrap Searched 5 | . . 2 3 Spaces Dug . | . . . . Terrain Destroyed 19 | . 6 . 13 Melee . | . . . . Projectile . | . . . . AOE 19 | . 6 . 13 Terrain Rammed . | . . . . Walls Destroyed . | . . . . Machines Disabled . | . . . . Actions | -11 -10 -10 -10 --------- Run | Yrd Mat Min Sub Total 1508 | 163 63 260 1022 Wait 80 | 8 . 39 33 Move 1184 | 129 55 197 803 Hop . | . . . . Pick Up 37 | 12 2 6 17 Fast Attach . | . . . . Attach 13 | 7 . . 6 Detach . | . . . . Swap 17 | . . 3 14 Drop 20 | 1 . 5 14 Fire 154 | 6 6 10 132 Melee . | . . . . Ram . | . . . . Kick . | . . . . Crush 3 | . . . 3 Escape Stasis . | . . . . Rewire . | . . . . Trap . | . . . . Miscellaneous . | . . . . Route ------- -11/Scrapyard -10/Materials -10/Mines (discovered 2 exits: [*Mat] / [*Sub]) -10/Subcaves (discovered 3 exits: [*Mat x2] / [*Rec]) History --------- Turn | Location | Event 5 | -11/Scrapyard | Discovered new exit (range 14) 239 | -11/Scrapyard | Entered Materials 316 | -10/Materials | Build established: Mutant 321 | -10/Materials | Discovered new exit (range 12) 347 | -10/Materials | Entered Mines 471 | -10/Mines | Discovered new exit (range 18) 689 | -10/Mines | Found DCF Scrap (11 items) 692 | -10/Mines | Received a Mining Laser from a helpful Derelict 735 | -10/Mines | Discovered new exit (range 3) 743 | -10/Mines | Entered Subcaves 743 | -10/Subcaves | Accompanied by 1 ally 751 | -10/Subcaves | Discovered new exit (range 9) 805 | -10/Subcaves | Discovered new exit (range 10) 1058 | -10/Subcaves | Shifting Twisted Machinery released Sub. Machine Gun 1377 | -10/Subcaves | Core integrity fell below 50% 1378 | -10/Subcaves | Shifting Twisted Machinery released Sub. Machine Gun 1393 | -10/Subcaves | Lost 4 parts (2p2w) 1727 | -10/Subcaves | Discovered new exit (range 10) 1797 | -10/Subcaves | Shifting Twisted Machinery released Sub. Monowheel 1798 | -10/Subcaves | Shifting Twisted Machinery released Sub. Power Source 2210 | -10/Subcaves | Core integrity fell below 20% 2213 | -10/Subcaves | Destroyed by 00-2G5(R) with Subdweller Beam Cannon Last Messages --------------- 02066_ Dropped Broken Sub. Power Source. 02113_ FV-JVU(R) destroyed. 02115_ Acquired 30 matter. 02124_ Sub. Monowheel shoots sparks and powers down. 02125_ Searching scrap... 02125_ Found Lgt. Humpback. 02125_ Found Sub. Machine Gun. 02125_ Found 57 Matter. 02126_ Acquired 51 matter. 02127_ Searching scrap... 02127_ Found Battle Cannon. 02127_ Found 68 Matter. 02129_ Searching scrap... 02129_ Found Shrapnel Trap. 02129_ Found 52 Matter. 02134_ Acquired Sub. Machine Gun. 02139_ Acquired Battle Cannon. 02141_ Acquired 20 matter. 02147_ Acquired Lgt. Humpback. Map ----- +----------------------------------------------------+ | ## ##????????????????????????????????????????? | | ### ##???????????????????????????????????????? | | #?## #???????????????????????????????????????? | | #?## #???????????????????????????????????????? | | ###### ##???????????????????????????????????????? | | ?# ## ####?????????????????????????????????????? | | ## ##??? ????????????????????????????????? | | ### ????????????????????????????????? | | #???????????????????????????????? | | #???????????????????????????????? | | #??????????????????????????????? | | % %% #?????????????????????????????? | | % ????##??????????????????????? | | #### ???? ;#?????????????????????? | | #### #???? #?????????????????????? | | ## ## #???? #?????????????????????? | | ?## #????# #?????????????????????? | | ### % #????# #?????????????????????? | | # ##??## ##????????????????????? | | # ##?# ##???????????????????? | | ## #?# ##??????????????????? | | ?# ### #?## ##?????????????????? | | ?## #?# ### ??????????????????? | | ##### ### #??# #?????????????????????? | | ##?##### #??# #?????????????????????? | | ###??# ##?## ##@ #?????????????????????? | | #?## #### # #????????????????????? | | # ### ## R##????????????????????? | | ##!& ######R #?????????????????????? | | ### & ##????# ?????????????????????? | | # #" * ####????? ????????????????????? | | # ##???????? ????????????????????? | | # #" ##????????# ???????????????????? | | "## ##### ##???????# ??????????????????? | | #### ##??### #???????? ??????????????????? | | ??## #### ### #??????? #?????????????????? | | ??# ## ### #??????? ##?????????????????? | | ??# #####??????? ###??????????????????? | | ??## ##??????????? #????????????????????? | | ???#### #???????????? #????????????????????? | | ??????## ##????????????###?????????????????????? | | ???????#####?????????????????????????????????????? | | ?????????????????????????????????????????????????? | | ?????????????????????????????????????????????????? | | ?????????????????????????????????????????????????? | | ?????????????????????????????????????????????????? | | ?????????????????????????????????????????????????? | | ?????????????????????????????????????????????????? | | ?????????????????????????????????????????????????? | | ?????????????????????????????????????????????????? | +----------------------------------------------------+ Best States ------------- Heat Dissipation 25 Energy Generation 15 Energy Capacity 250 Matter Stores 300 Matter Capacity 300 Sight Range 16 Terrain Scan Density 10 Evasion (%) 50 Recoil Reduction 2 Item Schematics ----------------- None Robot Schematics ------------------ None Fabricated ------------ Nothing Repaired ---------- Nothing Alien Tech Used ----------------- None Achievements -------------- None Challenges ------------ None Game ------ Seed SubdwellerStasisArticulator Manual? 0 Play Time 00:11:18 Cumulative 230.4 hours Start 2025.08.30 @ 08:20:52 End 2025.08.30 @ 08:29:48 Sessions 1 Manual Loads 0 Difficulty Rogue Special Mode None Game No. 340 Rogue 340 Adventurer 0 Explorer 0 Win Type - Total 4 Types 3/0/1/0/0/0/0/0/0/0 Lore% 81 Gallery% 76 Achievement% 58 Wizard Run 0 Options --------- Layout 1 ASCII 0 Keyboard 0 Movement Mouse Keybinds 0 Fullscreen 1 Font 32/SmallcapsGlow Map View 50x35 Zoom Use 0% Tactical HUD 1 Map Filters NONE Filters NONE Steam 1 RUN: 36801cc8-7b15-4740-bbbd-521ea3af3052